[Event "Titled Tuesday Blitz July 18 Late 2023"]
[White "Lopez Idarraga, Daniel Eduardo"]
[Black "Tomaszewski, Kacper"]
[WhiteFideId "4405501"]
[BlackFideId "1127373"]
[WhiteElo "2316"]
[BlackElo "2472"]
[Result "1-0"]
[Round "5"]
[TimeControl "180+2"]
[Date "2023.07.18"]
[WhiteClock "0:00:36"]
[BlackClock "0:00:00"]
[Board "120"]

1. d4 {[%clk 0:02:54]}  Nf6 {[%clk 0:02:59]} 2. Bf4 {[%clk 0:02:52]}  c5 {[%clk 0:02:58]} 3. e3 {[%clk 0:02:50]}  d6 {[%clk 0:02:58]} 4. c3 {[%clk 0:02:50]}  Qb6 {[%clk 0:02:51]} 5. Qb3 {[%clk 0:02:47]}  Nh5 {[%clk 0:02:50]} 6. Bg5 {[%clk 0:02:47]}  h6 {[%clk 0:02:50]} 7. Bh4 {[%clk 0:02:47]}  g5 {[%clk 0:02:50]} 8. Be2 {[%clk 0:02:48]}  Ng7 {[%clk 0:02:48]} 9. Bg3 {[%clk 0:02:46]}  Nf5 {[%clk 0:02:48]} 10. Nd2 {[%clk 0:02:44]}  Nxg3 {[%clk 0:02:48]} 11. hxg3 {[%clk 0:02:43]}  Bg7 {[%clk 0:02:41]} 12. Ngf3 {[%clk 0:02:39]}  O-O {[%clk 0:02:39]} 13. Nc4 {[%clk 0:02:38]}  Qc7 {[%clk 0:02:29]} 14. a4 {[%clk 0:02:35]}  cxd4 {[%clk 0:02:17]} 15. exd4 {[%clk 0:02:32]}  Bf5 {[%clk 0:02:12]} 16. O-O {[%clk 0:02:30]}  Nc6 {[%clk 0:02:06]} 17. Rfe1 {[%clk 0:02:29]}  Rfc8 {[%clk 0:02:00]} 18. Bf1 {[%clk 0:02:25]}  Rab8 {[%clk 0:01:47]} 19. Re3 {[%clk 0:02:22]}  e6 {[%clk 0:01:29]} 20. Rae1 {[%clk 0:02:08]}  d5 {[%clk 0:01:27]} 21. Nce5 {[%clk 0:02:07]}  Nxe5 {[%clk 0:01:26]} 22. Nxe5 {[%clk 0:02:08]}  a6 {[%clk 0:01:23]} 23. g4 {[%clk 0:02:03]}  Be4 {[%clk 0:01:14]} 24. Bd3 {[%clk 0:01:52]}  Bxe5 {[%clk 0:01:01]} 25. dxe5 {[%clk 0:01:53]}  Bxd3 {[%clk 0:01:00]} 26. Rxd3 {[%clk 0:01:54]}  Qc4 {[%clk 0:00:59]} 27. Qxc4 {[%clk 0:01:51]}  Rxc4 {[%clk 0:01:00]} 28. Rd4 {[%clk 0:01:51]}  Rbc8 {[%clk 0:00:59]} 29. Red1 {[%clk 0:01:51]}  Kf8 {[%clk 0:00:55]} 30. f3 {[%clk 0:01:49]}  Ke7 {[%clk 0:00:55]} 31. Kf2 {[%clk 0:01:49]}  Rxd4 {[%clk 0:00:52]} 32. Rxd4 {[%clk 0:01:47]}  Kd7 {[%clk 0:00:52]} 33. g3 {[%clk 0:01:46]}  Rc4 {[%clk 0:00:51]} 34. Rxc4 {[%clk 0:01:45]}  dxc4 {[%clk 0:00:52]} 35. Ke3 {[%clk 0:01:45]}  b5 {[%clk 0:00:51]} 36. axb5 {[%clk 0:01:45]}  axb5 {[%clk 0:00:51]} 37. Kd4 {[%clk 0:01:46]}  Kc6 {[%clk 0:00:51]} 38. f4 {[%clk 0:01:45]}  Kb6 {[%clk 0:00:49]} 39. Ke3 {[%clk 0:01:31]}  Kc5 {[%clk 0:00:48]} 40. Ke4 {[%clk 0:01:31]}  Kc6 {[%clk 0:00:38]} 41. Kd4 {[%clk 0:01:30]}  Kb6 {[%clk 0:00:39]} 42. Ke3 {[%clk 0:01:31]}  Kc5 {[%clk 0:00:26]} 43. Ke4 {[%clk 0:01:30]}  b4 {[%clk 0:00:12]} 44. Ke3 {[%clk 0:01:01]}  bxc3 {[%clk 0:00:10]} 45. bxc3 {[%clk 0:01:02]}  Kd5 {[%clk 0:00:10]} 46. Kf3 {[%clk 0:00:59]}  Kc6 {[%clk 0:00:06]} 47. Ke2 {[%clk 0:00:56]}  Kc5 {[%clk 0:00:03]} 48. Kf3 {[%clk 0:00:52]}  Kc6 {[%clk 0:00:02]} 49. Ke2 {[%clk 0:00:47]}  Kc5 {[%clk 0:00:02]} 50. Kf2 {[%clk 0:00:45]}  Kc6 {[%clk 0:00:02]} 51. Kf3 {[%clk 0:00:44]}  Kc5 {[%clk 0:00:02]} 52. Ke4 {[%clk 0:00:42]}  Kc6 {[%clk 0:00:01]} 53. Kd4 {[%clk 0:00:41]}  Kb5 {[%clk 0:00:02]} 54. f5 {[%clk 0:00:40]}  exf5 {[%clk 0:00:01]} 55. gxf5 {[%clk 0:00:41]}  h5 {[%clk 0:00:02]} 56. f6 {[%clk 0:00:38]}  Kc6 {[%clk 0:00:00]} 57. e6 {[%clk 0:00:36]} 1-0


[Site "https://www.chess.com"]

[Event "Titled Tuesday Blitz July 18 Late 2023"]
[White "Gertler, David"]
[Black "Sztokbant, Bernardo Vainzoff"]
[WhiteFideId "2017377"]
[BlackFideId "2115956"]
[WhiteElo "2296"]
[BlackElo "2429"]
[Result "1-0"]
[Round "5"]
[TimeControl "180+2"]
[Date "2023.07.18"]
[WhiteClock "0:01:19"]
[BlackClock "0:00:10"]
[Board "122"]

1. e4 {[%clk 0:03:00]}  c6 {[%clk 0:02:13]} 2. c4 {[%clk 0:02:48]}  d5 {[%clk 0:02:14]} 3. cxd5 {[%clk 0:02:48]}  cxd5 {[%clk 0:02:15]} 4. exd5 {[%clk 0:02:49]}  Nf6 {[%clk 0:02:14]} 5. Bb5+ {[%clk 0:02:49]}  Nbd7 {[%clk 0:02:13]} 6. Nc3 {[%clk 0:02:49]}  g6 {[%clk 0:02:09]} 7. d4 {[%clk 0:02:49]}  Bg7 {[%clk 0:02:09]} 8. d6 {[%clk 0:02:49]}  exd6 {[%clk 0:02:08]} 9. Qe2+ {[%clk 0:02:50]}  Qe7 {[%clk 0:01:55]} 10. Bf4 {[%clk 0:02:50]}  Qxe2+ {[%clk 0:01:49]} 11. Bxe2 {[%clk 0:02:51]}  Ke7 {[%clk 0:01:33]} 12. Bf3 {[%clk 0:02:50]}  Nb6 {[%clk 0:01:26]} 13. Nge2 {[%clk 0:02:50]}  Rd8 {[%clk 0:01:18]} 14. O-O {[%clk 0:02:45]}  Kf8 {[%clk 0:01:18]} 15. Nb5 {[%clk 0:02:44]}  Ne8 {[%clk 0:01:13]} 16. Rac1 {[%clk 0:02:38]}  a6 {[%clk 0:01:11]} 17. Nc7 {[%clk 0:02:37]}  Rb8 {[%clk 0:00:57]} 18. Nxe8 {[%clk 0:02:21]}  Kxe8 {[%clk 0:00:58]} 19. Rc7 {[%clk 0:02:19]}  Na8 {[%clk 0:00:43]} 20. Rc3 {[%clk 0:02:12]}  Nb6 {[%clk 0:00:40]} 21. Rfc1 {[%clk 0:01:55]}  Be6 {[%clk 0:00:39]} 22. b3 {[%clk 0:01:46]}  Bd5 {[%clk 0:00:28]} 23. Bg5 {[%clk 0:01:26]}  Rd7 {[%clk 0:00:14]} 24. Bxd5 {[%clk 0:01:20]}  Nxd5 {[%clk 0:00:14]} 25. Rc8+ {[%clk 0:01:20]}  Rd8 {[%clk 0:00:10]} 26. Bxd8 {[%clk 0:01:19]} 1-0


[Site "https://www.chess.com"]

[Event "Titled Tuesday Blitz July 18 Late 2023"]
[White "BrandonJiang123456"]
[Black "Ai, Evan"]
[BlackFideId "2094770"]
[WhiteElo "2278"]
[BlackElo "2425"]
[Result "1/2-1/2"]
[Round "5"]
[TimeControl "180+2"]
[Date "2023.07.18"]
[WhiteClock "0:00:19"]
[BlackClock "0:00:23"]
[Board "123"]

1. Nf3 {[%clk 0:02:59]}  Nf6 {[%clk 0:02:55]} 2. d3 {[%clk 0:02:58]}  e6 {[%clk 0:02:55]} 3. e4 {[%clk 0:02:57]}  d5 {[%clk 0:02:56]} 4. Nbd2 {[%clk 0:02:58]}  dxe4 {[%clk 0:02:54]} 5. dxe4 {[%clk 0:02:57]}  Nc6 {[%clk 0:02:54]} 6. Be2 {[%clk 0:02:52]}  e5 {[%clk 0:02:53]} 7. O-O {[%clk 0:02:50]}  Bc5 {[%clk 0:02:53]} 8. c3 {[%clk 0:02:46]}  a5 {[%clk 0:02:52]} 9. b3 {[%clk 0:02:44]}  O-O {[%clk 0:02:51]} 10. Qc2 {[%clk 0:02:44]}  Re8 {[%clk 0:02:49]} 11. a3 {[%clk 0:02:44]}  h6 {[%clk 0:02:47]} 12. Bb2 {[%clk 0:02:39]}  Be6 {[%clk 0:02:42]} 13. b4 {[%clk 0:02:25]}  Bb6 {[%clk 0:02:42]} 14. Nc4 {[%clk 0:02:21]}  axb4 {[%clk 0:02:30]} 15. axb4 {[%clk 0:02:19]}  Rxa1 {[%clk 0:02:21]} 16. Rxa1 {[%clk 0:02:17]}  Bxc4 {[%clk 0:01:59]} 17. Bxc4 {[%clk 0:02:15]}  Ng4 {[%clk 0:01:53]} 18. Rf1 {[%clk 0:02:13]}  Qd6 {[%clk 0:01:45]} 19. h3 {[%clk 0:02:12]}  Nf6 {[%clk 0:01:44]} 20. Rd1 {[%clk 0:02:10]}  Qe7 {[%clk 0:01:44]} 21. Ba3 {[%clk 0:01:27]}  Rd8 {[%clk 0:01:22]} 22. Ra1 {[%clk 0:01:09]}  Ra8 {[%clk 0:01:16]} 23. Nd2 {[%clk 0:00:59]}  Qd7 {[%clk 0:01:10]} 24. Nf3 {[%clk 0:00:52]}  Qe8 {[%clk 0:00:57]} 25. Nh4 {[%clk 0:00:41]}  Ne7 {[%clk 0:00:38]} 26. Qe2 {[%clk 0:00:33]}  Nc8 {[%clk 0:00:36]} 27. Nf5 {[%clk 0:00:26]}  Nd6 {[%clk 0:00:31]} 28. Nxd6 {[%clk 0:00:26]}  cxd6 {[%clk 0:00:32]} 29. Bb5 {[%clk 0:00:20]}  Qc8 {[%clk 0:00:28]} 30. Bb2 {[%clk 0:00:19]}  Rxa1+ {[%clk 0:00:26]} 31. Bxa1 {[%clk 0:00:20]}  Qa8 {[%clk 0:00:23]} 32. Bb2 {[%clk 0:00:17]}  Qa2 {[%clk 0:00:23]} 33. Bc4 {[%clk 0:00:17]}  Qb1+ {[%clk 0:00:23]} 34. Kh2 {[%clk 0:00:17]}  Qxe4 {[%clk 0:00:22]} 35. Qxe4 {[%clk 0:00:16]}  Nxe4 {[%clk 0:00:23]} 36. Bd5 {[%clk 0:00:16]}  Nxf2 {[%clk 0:00:23]} 37. Bxb7 {[%clk 0:00:17]}  e4 {[%clk 0:00:21]} 38. c4 {[%clk 0:00:14]}  e3 {[%clk 0:00:20]} 39. Bf3 {[%clk 0:00:14]}  Nd3 {[%clk 0:00:19]} 40. Bc3 {[%clk 0:00:14]}  Nc1 {[%clk 0:00:15]} 41. Kg3 {[%clk 0:00:13]}  Na2 {[%clk 0:00:15]} 42. Bb2 {[%clk 0:00:12]}  Nxb4 {[%clk 0:00:16]} 43. Ba3 {[%clk 0:00:12]}  Nd3 {[%clk 0:00:08]} 44. Bxd6 {[%clk 0:00:12]}  Nc1 {[%clk 0:00:08]} 45. c5 {[%clk 0:00:11]}  e2 {[%clk 0:00:08]} 46. Bxe2 {[%clk 0:00:10]}  Nxe2+ {[%clk 0:00:08]} 47. Kf2 {[%clk 0:00:11]}  Bxc5+ {[%clk 0:00:07]} 48. Bxc5 {[%clk 0:00:11]}  Nf4 {[%clk 0:00:08]} 49. Be3 {[%clk 0:00:11]}  Ne6 {[%clk 0:00:08]} 50. Bc1 {[%clk 0:00:11]}  h5 {[%clk 0:00:09]} 51. Ba3 {[%clk 0:00:11]}  g6 {[%clk 0:00:10]} 52. Bc1 {[%clk 0:00:11]}  Kg7 {[%clk 0:00:10]} 53. Ba3 {[%clk 0:00:11]}  f5 {[%clk 0:00:11]} 54. Bb2+ {[%clk 0:00:12]}  Kh6 {[%clk 0:00:11]} 55. Kg1 {[%clk 0:00:12]}  g5 {[%clk 0:00:12]} 56. Ba3 {[%clk 0:00:13]}  Kg6 {[%clk 0:00:13]} 57. Bb2 {[%clk 0:00:13]}  f4 {[%clk 0:00:14]} 58. Ba3 {[%clk 0:00:14]}  Kf5 {[%clk 0:00:14]} 59. Bb2 {[%clk 0:00:14]}  Nc5 {[%clk 0:00:15]} 60. Ba3 {[%clk 0:00:14]}  Ne4 {[%clk 0:00:15]} 61. Bf8 {[%clk 0:00:14]}  Ng3 {[%clk 0:00:15]} 62. Ba3 {[%clk 0:00:14]}  Ke4 {[%clk 0:00:16]} 63. Be7 {[%clk 0:00:13]}  Nf5 {[%clk 0:00:17]} 64. Bxg5 {[%clk 0:00:13]}  Nd4 {[%clk 0:00:12]} 65. Bd8 {[%clk 0:00:12]}  Ke3 {[%clk 0:00:12]} 66. Bb6 {[%clk 0:00:12]}  Ke4 {[%clk 0:00:12]} 67. Bxd4 {[%clk 0:00:10]}  Kxd4 {[%clk 0:00:13]} 68. Kf2 {[%clk 0:00:10]}  Ke4 {[%clk 0:00:14]} 69. Ke2 {[%clk 0:00:11]}  Ke5 {[%clk 0:00:15]} 70. Kf3 {[%clk 0:00:11]}  Kf5 {[%clk 0:00:15]} 71. g3 {[%clk 0:00:11]}  fxg3 {[%clk 0:00:15]} 72. Kxg3 {[%clk 0:00:12]}  Kg5 {[%clk 0:00:15]} 73. h4+ {[%clk 0:00:13]}  Kf5 {[%clk 0:00:16]} 74. Kf3 {[%clk 0:00:13]}  Kf6 {[%clk 0:00:16]} 75. Kf4 {[%clk 0:00:14]}  Kf7 {[%clk 0:00:17]} 76. Kg5 {[%clk 0:00:14]}  Kg7 {[%clk 0:00:18]} 77. Kxh5 {[%clk 0:00:15]}  Kh7 {[%clk 0:00:19]} 78. Kg5 {[%clk 0:00:15]}  Kg7 {[%clk 0:00:20]} 79. h5 {[%clk 0:00:16]}  Kh7 {[%clk 0:00:21]} 80. h6 {[%clk 0:00:17]}  Kh8 {[%clk 0:00:21]} 81. Kh5 {[%clk 0:00:18]}  Kg8 {[%clk 0:00:22]} 82. Kg6 {[%clk 0:00:18]}  Kh8 {[%clk 0:00:23]} 83. h7 {[%clk 0:00:19]} 1/2-1/2


[Site "https://www.chess.com"]

[Event "Titled Tuesday Blitz July 18 Late 2023"]
[White "Baches Garcia, Guillermo"]
[Black "Sarkar, Justin"]
[WhiteFideId "2209764"]
[BlackFideId "2010011"]
[WhiteElo "2411"]
[BlackElo "2246"]
[Result "1-0"]
[Round "5"]
[TimeControl "180+2"]
[Date "2023.07.18"]
[WhiteClock "0:00:29"]
[BlackClock "0:00:00"]
[Board "125"]

1. e4 {[%clk 0:03:00]}  e5 {[%clk 0:02:49]} 2. Nf3 {[%clk 0:03:01]}  Nc6 {[%clk 0:02:48]} 3. Nc3 {[%clk 0:03:01]}  Nf6 {[%clk 0:02:47]} 4. d4 {[%clk 0:03:01]}  exd4 {[%clk 0:02:44]} 5. Nxd4 {[%clk 0:03:02]}  Bb4 {[%clk 0:02:43]} 6. Nxc6 {[%clk 0:03:01]}  bxc6 {[%clk 0:02:42]} 7. Bd3 {[%clk 0:03:02]}  O-O {[%clk 0:02:31]} 8. O-O {[%clk 0:03:02]}  d5 {[%clk 0:02:28]} 9. Bd2 {[%clk 0:03:02]}  Rb8 {[%clk 0:02:21]} 10. Re1 {[%clk 0:03:01]}  Re8 {[%clk 0:02:13]} 11. a3 {[%clk 0:02:54]}  Bd6 {[%clk 0:01:58]} 12. exd5 {[%clk 0:02:52]}  Rxe1+ {[%clk 0:01:49]} 13. Qxe1 {[%clk 0:02:43]}  cxd5 {[%clk 0:01:46]} 14. Nb5 {[%clk 0:02:35]}  Bf8 {[%clk 0:00:37]} 15. Bf4 {[%clk 0:02:25]}  Rb7 {[%clk 0:00:35]} 16. Qa5 {[%clk 0:02:17]}  Bd7 {[%clk 0:00:20]} 17. Bxc7 {[%clk 0:02:01]}  Qc8 {[%clk 0:00:14]} 18. Be5 {[%clk 0:01:57]}  Bxb5 {[%clk 0:00:07]} 19. Bxb5 {[%clk 0:01:57]}  Qxc2 {[%clk 0:00:07]} 20. Ba4 {[%clk 0:01:17]}  Qe2 {[%clk 0:00:04]} 21. Re1 {[%clk 0:01:04]}  Qc4 {[%clk 0:00:04]} 22. b3 {[%clk 0:00:54]}  Qc2 {[%clk 0:00:02]} 23. Qc3 {[%clk 0:00:47]}  Qa2 {[%clk 0:00:01]} 24. Bxf6 {[%clk 0:00:34]}  gxf6 {[%clk 0:00:01]} 25. h4 {[%clk 0:00:30]}  Re7 {[%clk 0:00:00]} 26. Qg3+ {[%clk 0:00:29]} 1-0


[Site "https://www.chess.com"]

[Event "Titled Tuesday Blitz July 18 Late 2023"]
[White "UgarteCesar"]
[Black "Mikhalsky, Vladimir"]
[BlackFideId "14144352"]
[WhiteElo "2240"]
[BlackElo "2408"]
[Result "1-0"]
[Round "5"]
[TimeControl "180+2"]
[Date "2023.07.18"]
[WhiteClock "0:00:31"]
[BlackClock "0:00:00"]
[Board "126"]

1. d4 {[%clk 0:03:00]}  Nf6 {[%clk 0:02:58]} 2. Bf4 {[%clk 0:03:00]}  c5 {[%clk 0:02:58]} 3. e3 {[%clk 0:03:00]}  g6 {[%clk 0:02:57]} 4. h3 {[%clk 0:02:59]}  Bg7 {[%clk 0:02:56]} 5. Nf3 {[%clk 0:03:00]}  O-O {[%clk 0:02:56]} 6. Be2 {[%clk 0:02:59]}  b6 {[%clk 0:02:56]} 7. O-O {[%clk 0:02:58]}  Bb7 {[%clk 0:02:55]} 8. c3 {[%clk 0:02:59]}  d6 {[%clk 0:02:54]} 9. Nbd2 {[%clk 0:02:58]}  Nc6 {[%clk 0:02:51]} 10. Bh2 {[%clk 0:02:20]}  Nd7 {[%clk 0:02:39]} 11. Qc2 {[%clk 0:02:07]}  a6 {[%clk 0:02:32]} 12. a4 {[%clk 0:02:07]}  Rc8 {[%clk 0:02:30]} 13. Rfc1 {[%clk 0:02:04]}  Rc7 {[%clk 0:02:29]} 14. Qd1 {[%clk 0:02:04]}  Qa8 {[%clk 0:02:28]} 15. Qf1 {[%clk 0:02:04]}  Rd8 {[%clk 0:02:11]} 16. Rab1 {[%clk 0:01:57]}  Nf6 {[%clk 0:01:51]} 17. Bc4 {[%clk 0:01:45]}  Rcc8 {[%clk 0:01:48]} 18. Ng5 {[%clk 0:01:45]}  e6 {[%clk 0:01:40]} 19. Be2 {[%clk 0:01:36]}  h6 {[%clk 0:01:28]} 20. Ngf3 {[%clk 0:01:36]}  Ne7 {[%clk 0:01:19]} 21. b4 {[%clk 0:01:32]}  cxb4 {[%clk 0:01:14]} 22. cxb4 {[%clk 0:01:32]}  Ned5 {[%clk 0:01:13]} 23. Nc4 {[%clk 0:01:07]}  Ne4 {[%clk 0:01:10]} 24. Bd3 {[%clk 0:01:02]}  Nec3 {[%clk 0:01:06]} 25. Rb3 {[%clk 0:01:00]}  Nxa4 {[%clk 0:01:05]} 26. Nxd6 {[%clk 0:00:56]}  Rxc1 {[%clk 0:01:01]} 27. Qxc1 {[%clk 0:00:57]}  b5 {[%clk 0:00:44]} 28. Rb1 {[%clk 0:00:46]}  Bf8 {[%clk 0:00:43]} 29. Nxb7 {[%clk 0:00:46]}  Qxb7 {[%clk 0:00:42]} 30. Be4 {[%clk 0:00:46]}  Qc8 {[%clk 0:00:31]} 31. Bxd5 {[%clk 0:00:44]}  Qxc1+ {[%clk 0:00:24]} 32. Rxc1 {[%clk 0:00:44]}  exd5 {[%clk 0:00:24]} 33. Rc6 {[%clk 0:00:40]}  Bxb4 {[%clk 0:00:20]} 34. Rxa6 {[%clk 0:00:40]}  Nc3 {[%clk 0:00:20]} 35. Bc7 {[%clk 0:00:38]}  Rc8 {[%clk 0:00:20]} 36. Be5 {[%clk 0:00:37]}  Ne2+ {[%clk 0:00:16]} 37. Kh2 {[%clk 0:00:37]}  Bf8 {[%clk 0:00:12]} 38. Rb6 {[%clk 0:00:37]}  b4 {[%clk 0:00:12]} 39. Rb7 {[%clk 0:00:37]}  Nc3 {[%clk 0:00:11]} 40. Bf4 {[%clk 0:00:35]}  Nd1 {[%clk 0:00:10]} 41. Ne5 {[%clk 0:00:35]}  g5 {[%clk 0:00:07]} 42. Bg3 {[%clk 0:00:34]}  f6 {[%clk 0:00:07]} 43. Nd7 {[%clk 0:00:32]}  Rd8 {[%clk 0:00:00]} 44. Nxf6+ {[%clk 0:00:31]} 1-0


[Site "https://www.chess.com"]

[Event "Titled Tuesday Blitz July 18 Late 2023"]
[White "Stoyanov, Tsvetan"]
[Black "Vila Dupla, Aurelio"]
[WhiteFideId "2917173"]
[BlackFideId "2203383"]
[WhiteElo "2711"]
[BlackElo "2228"]
[Result "1-0"]
[Round "5"]
[TimeControl "180+2"]
[Date "2023.07.18"]
[WhiteClock "0:02:32"]
[BlackClock "0:01:52"]
[Board "128"]

1. c4 {[%clk 0:02:55]}  Nf6 {[%clk 0:02:59]} 2. Nc3 {[%clk 0:02:55]}  d5 {[%clk 0:02:59]} 3. cxd5 {[%clk 0:02:55]}  Nxd5 {[%clk 0:03:00]} 4. Nf3 {[%clk 0:02:55]}  Nc6 {[%clk 0:02:57]} 5. e3 {[%clk 0:02:54]}  e6 {[%clk 0:02:36]} 6. Bb5 {[%clk 0:02:51]}  Bd7 {[%clk 0:02:35]} 7. O-O {[%clk 0:02:50]}  Be7 {[%clk 0:02:32]} 8. Qb3 {[%clk 0:02:47]}  Nb6 {[%clk 0:02:22]} 9. d4 {[%clk 0:02:45]}  O-O {[%clk 0:02:22]} 10. Bd3 {[%clk 0:02:43]}  Na5 {[%clk 0:02:17]} 11. Qd1 {[%clk 0:02:42]}  Bc6 {[%clk 0:02:13]} 12. Ne5 {[%clk 0:02:41]}  Be8 {[%clk 0:02:11]} 13. Qh5 {[%clk 0:02:35]}  g6 {[%clk 0:02:08]} 14. Qh3 {[%clk 0:02:33]}  Nac4 {[%clk 0:01:58]} 15. Nxc4 {[%clk 0:02:31]}  Nxc4 {[%clk 0:01:52]} 16. Bxc4 {[%clk 0:02:32]} 1-0


[Site "https://www.chess.com"]

[Event "Titled Tuesday Blitz July 18 Late 2023"]
[White "Dubreuil, Julien"]
[Black "Goffredo_Fofi"]
[WhiteFideId "621285"]
[WhiteElo "2334"]
[BlackElo "2519"]
[Result "0-1"]
[Round "5"]
[TimeControl "180+2"]
[Date "2023.07.18"]
[WhiteClock "0:00:35"]
[BlackClock "0:00:10"]
[Board "131"]

1. c4 {[%clk 0:03:00]}  g6 {[%clk 0:02:36]} 2. g3 {[%clk 0:02:57]}  Bg7 {[%clk 0:02:37]} 3. Bg2 {[%clk 0:02:57]}  d6 {[%clk 0:02:37]} 4. Nc3 {[%clk 0:02:56]}  Nc6 {[%clk 0:02:37]} 5. e4 {[%clk 0:02:56]}  Nd4 {[%clk 0:02:36]} 6. d3 {[%clk 0:02:53]}  c5 {[%clk 0:02:35]} 7. h3 {[%clk 0:02:52]}  Nf6 {[%clk 0:02:35]} 8. Nge2 {[%clk 0:02:51]}  O-O {[%clk 0:02:33]} 9. O-O {[%clk 0:02:51]}  Ne8 {[%clk 0:02:33]} 10. Be3 {[%clk 0:02:51]}  Nxe2+ {[%clk 0:02:27]} 11. Qxe2 {[%clk 0:02:48]}  Nc7 {[%clk 0:02:28]} 12. Nb5 {[%clk 0:02:45]}  Ne6 {[%clk 0:02:27]} 13. Rab1 {[%clk 0:02:32]}  a6 {[%clk 0:02:26]} 14. Nc3 {[%clk 0:02:32]}  Nd4 {[%clk 0:02:26]} 15. Qd2 {[%clk 0:02:32]}  Rb8 {[%clk 0:02:13]} 16. Kh2 {[%clk 0:02:30]}  b5 {[%clk 0:02:10]} 17. b3 {[%clk 0:02:28]}  Bd7 {[%clk 0:01:11]} 18. f4 {[%clk 0:02:26]}  a5 {[%clk 0:01:10]} 19. Ne2 {[%clk 0:02:18]}  Nxe2 {[%clk 0:01:09]} 20. Qxe2 {[%clk 0:02:18]}  a4 {[%clk 0:01:09]} 21. Rbd1 {[%clk 0:02:12]}  axb3 {[%clk 0:01:04]} 22. axb3 {[%clk 0:02:12]}  bxc4 {[%clk 0:01:03]} 23. bxc4 {[%clk 0:02:13]}  Bc6 {[%clk 0:01:02]} 24. Rb1 {[%clk 0:02:11]}  Qa5 {[%clk 0:00:59]} 25. h4 {[%clk 0:01:56]}  h5 {[%clk 0:00:57]} 26. Qc2 {[%clk 0:01:46]}  Qa4 {[%clk 0:00:49]} 27. Qxa4 {[%clk 0:01:41]}  Bxa4 {[%clk 0:00:50]} 28. e5 {[%clk 0:01:39]}  Bc2 {[%clk 0:00:45]} 29. Rxb8 {[%clk 0:01:35]}  Rxb8 {[%clk 0:00:46]} 30. d4 {[%clk 0:01:34]}  Rb3 {[%clk 0:00:46]} 31. Bg1 {[%clk 0:01:30]}  cxd4 {[%clk 0:00:27]} 32. Bxd4 {[%clk 0:01:29]}  Rb4 {[%clk 0:00:27]} 33. exd6 {[%clk 0:01:16]}  Bxd4 {[%clk 0:00:20]} 34. dxe7 {[%clk 0:01:12]}  Ba4 {[%clk 0:00:20]} 35. Ra1 {[%clk 0:00:53]}  Bxa1 {[%clk 0:00:18]} 36. f5 {[%clk 0:00:45]}  gxf5 {[%clk 0:00:15]} 37. Bd5 {[%clk 0:00:44]}  Bf6 {[%clk 0:00:14]} 38. Kg2 {[%clk 0:00:42]}  Bxe7 {[%clk 0:00:14]} 39. Kf3 {[%clk 0:00:42]}  Bd6 {[%clk 0:00:13]} 40. Kg2 {[%clk 0:00:37]}  Rb2+ {[%clk 0:00:12]} 41. Kh3 {[%clk 0:00:36]}  Rb3 {[%clk 0:00:11]} 42. Kg2 {[%clk 0:00:35]}  Rxg3+ {[%clk 0:00:12]} 43. Kf2 {[%clk 0:00:35]}  Rg4 {[%clk 0:00:10]} 0-1


[Site "https://www.chess.com"]

[Event "Titled Tuesday Blitz July 18 Late 2023"]
[White "Vifleemskaia, Svetlana"]
[Black "Yeritsyan, Hayk"]
[WhiteFideId "4129490"]
[BlackFideId "13307320"]
[WhiteElo "2323"]
[BlackElo "2490"]
[Result "0-1"]
[Round "5"]
[TimeControl "180+2"]
[Date "2023.07.18"]
[WhiteClock "0:00:00"]
[BlackClock "0:00:07"]
[Board "133"]

1. d4 {[%clk 0:02:48]}  d5 {[%clk 0:02:58]} 2. c4 {[%clk 0:02:47]}  c6 {[%clk 0:02:58]} 3. cxd5 {[%clk 0:02:46]}  cxd5 {[%clk 0:02:56]} 4. Bf4 {[%clk 0:02:47]}  Nc6 {[%clk 0:02:54]} 5. e3 {[%clk 0:02:46]}  Nf6 {[%clk 0:02:54]} 6. Nc3 {[%clk 0:02:46]}  Bf5 {[%clk 0:02:45]} 7. Qb3 {[%clk 0:02:42]}  Na5 {[%clk 0:02:42]} 8. Qa4+ {[%clk 0:02:42]}  Bd7 {[%clk 0:02:42]} 9. Qc2 {[%clk 0:02:42]}  e6 {[%clk 0:02:42]} 10. Bd3 {[%clk 0:02:40]}  Be7 {[%clk 0:02:41]} 11. Nf3 {[%clk 0:02:36]}  O-O {[%clk 0:02:41]} 12. O-O {[%clk 0:02:36]}  Rc8 {[%clk 0:02:41]} 13. Qe2 {[%clk 0:02:35]}  Nc4 {[%clk 0:02:39]} 14. Ne5 {[%clk 0:02:25]}  Nxe5 {[%clk 0:02:38]} 15. Bxe5 {[%clk 0:02:24]}  Qb6 {[%clk 0:02:35]} 16. Rfc1 {[%clk 0:02:17]}  Rfe8 {[%clk 0:02:10]} 17. Rc2 {[%clk 0:02:10]}  Bd6 {[%clk 0:01:59]} 18. Rac1 {[%clk 0:02:03]}  Red8 {[%clk 0:01:49]} 19. Bxf6 {[%clk 0:01:49]}  gxf6 {[%clk 0:01:49]} 20. Qh5 {[%clk 0:01:46]}  Kf8 {[%clk 0:01:22]} 21. f4 {[%clk 0:01:33]}  Ke7 {[%clk 0:01:18]} 22. f5 {[%clk 0:00:56]}  Rf8 {[%clk 0:00:51]} 23. fxe6 {[%clk 0:00:43]}  fxe6 {[%clk 0:00:51]} 24. Qxh7+ {[%clk 0:00:40]}  Rf7 {[%clk 0:00:51]} 25. Qh5 {[%clk 0:00:35]}  Rg8 {[%clk 0:00:44]} 26. Rf2 {[%clk 0:00:19]}  Rfg7 {[%clk 0:00:35]} 27. Rcf1 {[%clk 0:00:18]}  Rf8 {[%clk 0:00:21]} 28. Qh6 {[%clk 0:00:16]}  Rgf7 {[%clk 0:00:21]} 29. g3 {[%clk 0:00:13]}  Qd8 {[%clk 0:00:13]} 30. Qh5 {[%clk 0:00:10]}  Rg7 {[%clk 0:00:12]} 31. Qf3 {[%clk 0:00:10]}  f5 {[%clk 0:00:11]} 32. Ne2 {[%clk 0:00:07]}  Bc6 {[%clk 0:00:12]} 33. Nf4 {[%clk 0:00:07]}  Bxf4 {[%clk 0:00:12]} 34. exf4 {[%clk 0:00:06]}  Qd6 {[%clk 0:00:11]} 35. Qe3 {[%clk 0:00:06]}  Kd7 {[%clk 0:00:11]} 36. Re1 {[%clk 0:00:05]}  Rfg8 {[%clk 0:00:11]} 37. Rf3 {[%clk 0:00:05]}  Rg4 {[%clk 0:00:10]} 38. Kf2 {[%clk 0:00:04]}  R4g7 {[%clk 0:00:09]} 39. a3 {[%clk 0:00:05]}  Rh7 {[%clk 0:00:09]} 40. h4 {[%clk 0:00:04]}  Rhg7 {[%clk 0:00:09]} 41. Re2 {[%clk 0:00:04]}  a6 {[%clk 0:00:10]} 42. Rc2 {[%clk 0:00:04]}  Qe7 {[%clk 0:00:09]} 43. Re2 {[%clk 0:00:03]}  Qf6 {[%clk 0:00:09]} 44. Rc2 {[%clk 0:00:02]}  Rg6 {[%clk 0:00:09]} 45. b3 {[%clk 0:00:02]}  Qe7 {[%clk 0:00:08]} 46. a4 {[%clk 0:00:00]}  Qb4 {[%clk 0:00:07]} 0-1


[Site "https://www.chess.com"]